bitfinex-derivatives/quotes_BNBF0:USTF0_20250507
["timestamp","ask_amount","ask_price","bid_price","bid_amount"]
[1746581646388,0.28789358,605.29,603.36,0.33147706]
[1746581646994,0.30397983,605.28,603.36,0.33147706]
[1746581647995,0.28789358,605.29,603.36,0.33147706]
[1746581648194,0.30397494,605.28,603.36,0.33147706]
[1746581648595,0.30397494,605.28,603.37,0.682]
[1746581649794,0.28789358,605.29,603.37,0.682]
[1746581650101,0.30397555,605.28,603.37,0.682]
[1746581650598,0.30397555,605.28,603.39,0.33146058]
[1746581651890,0.30397555,605.34,603.39,0.33146058]
[1746581652197,0.28789001,605.27,603.39,0.33146058]
[1746581652396,0.30397555,605.26,603.39,0.33146058]
[1746581653097,0.30397555,605.34,603.39,0.33146058]
[1746581653297,0.30397555,605.33,603.39,0.33146058]
[1746581653598,0.30397555,605.34,603.39,0.33146058]
[1746581654000,0.28789001,605.32,603.39,0.33146058]
[1746581654199,0.30397555,605.31,603.39,0.33146058]
[1746581654899,0.30397555,605.34,603.39,0.33146058]
[1746581655496,0.28789715,605.33,603.39,0.33146058]
[1746581655699,0.30397555,605.32,603.39,0.33146058]
[1746581657002,0.28789715,605.33,603.39,0.33146058]
[1746581657202,0.30398204,605.32,603.39,0.33146058]
[1746581660297,0.28789715,605.33,603.39,0.33146058]
[1746581660702,0.33038737,605.35,603.39,0.33146058]
[1746581661399,0.28784595,605.34,603.39,0.33146058]
[1746581661598,0.30398104,605.32,603.39,0.33146058]
[1746581662098,0.30398104,605.33,603.39,0.33146058]
[1746581664700,0.28784595,605.34,603.39,0.33146058]
[1746581665003,0.30399735,605.33,603.39,0.33146058]
[1746581665604,0.30399735,605.33,603.4,0.463]
[1746581665805,0.30399735,605.33,603.42,0.3314441]
[1746581666999,0.30399735,605.34,603.42,0.3314441]
[1746581667804,0.28788405,605.33,603.42,0.3314441]
[1746581668299,0.30399735,605.32,603.42,0.3314441]
[1746581668504,0.30399735,605.32,603.42,0.9674441]
[1746581670206,0.28787215,605.31,603.42,0.9674441]
[1746581670708,0.30399735,605.3,603.42,0.9674441]
[1746581671605,0.28787215,605.31,603.42,0.9674441]
[1746581672301,0.3039498,605.3,603.42,0.9674441]
[1746581673100,0.3039498,605.34,603.42,0.9674441]
[1746581673305,0.2878531,605.29,603.42,0.9674441]
[1746581673706,0.3039498,605.28,603.42,0.9674441]
[1746581674808,0.2878531,605.29,603.42,0.9674441]
[1746581675108,0.3039702,605.27,603.42,0.9674441]
[1746581675408,0.3039702,605.28,603.42,0.9674441]
[1746581676309,0.3039702,605.34,603.42,0.9674441]
[1746581676504,0.33038737,605.35,603.42,0.9674441]
[1746581676705,0.30396754,605.34,603.42,0.9674441]
[1746581676905,0.28786262,605.33,603.42,0.9674441]
[1746581677306,0.30396754,605.32,603.42,0.9674441]
[1746581679209,0.30396754,605.34,603.42,0.9674441]
[1746581679809,0.2878531,605.33,603.42,0.9674441]
[1746581680110,0.30396754,605.32,603.42,0.9674441]
[1746581681204,0.30396754,605.32,603.42,1.5244441]
[1746581682310,0.30396754,605.34,603.42,1.5244441]
[1746581682706,0.2878531,605.31,603.42,1.5244441]
[1746581683310,0.30396754,605.3,603.42,1.5244441]
[1746581683911,0.2878531,605.31,603.42,1.5244441]
[1746581684307,0.30393359,605.3,603.42,1.5244441]
[1746581685010,0.30393359,605.34,603.42,1.5244441]
[1746581686016,0.2878531,605.33,603.42,1.5244441]
[1746581686415,0.30393359,605.32,603.42,1.5244441]
[1746581688114,0.33038737,605.35,603.42,1.5244441]
[1746581688412,0.30394218,605.34,603.42,1.5244441]
[1746581688612,0.2878531,605.31,603.42,1.5244441]
[1746581689215,0.30394218,605.3,603.42,1.5244441]
[1746581690915,0.30394218,605.34,603.42,1.5244441]
[1746581691216,0.28786738,605.29,603.42,1.5244441]
[1746581691515,0.30394218,605.28,603.42,1.5244441]
[1746581694018,0.30394218,605.34,603.42,1.5244441]
[1746581694518,0.28784952,605.27,603.42,1.5244441]
[1746581694719,0.30394218,605.26,603.42,1.5244441]
[1746581697214,0.28784357,605.25,603.42,1.5244441]
[1746581697815,0.30394218,605.24,603.42,1.5244441]
[1746581700419,0.30394218,605.34,603.42,1.5244441]
[1746581700819,0.28784119,605.23,603.42,1.5244441]
[1746581701421,0.30394218,605.22,603.42,1.5244441]
[1746581703623,0.28774242,605.21,603.42,1.5244441]
[1746581704017,0.30394218,605.2,603.42,1.5244441]
[1746581705823,1.261043,605.98,603.42,1.5244441]
[1746581706020,0.30387101,605.97,603.42,1.5244441]
[1746581706321,0.63392579,605.96,603.42,1.5244441]
[1746581706518,0.33006568,605.94,603.42,1.5244441]
[1746581707521,0.30386958,605.93,603.42,1.5244441]
[1746581707723,0.33008202,605.91,603.42,1.5244441]
[1746581707924,0.30386958,605.9,603.42,1.5244441]
[1746581708118,1.59114136,605.88,603.42,1.5244441]
[1746581708383,0.63397339,605.87,603.42,1.5244441]
[1746581708747,0.33010926,605.86,603.42,1.5244441]
[1746581709649,0.28776027,605.85,603.42,1.5244441]
[1746581710148,0.30386958,605.84,603.42,1.5244441]
[1746581710359,0.30386958,605.83,603.42,1.5244441]
[1746581710555,0.30386958,605.82,603.42,1.5244441]
[1746581710768,0.28776027,605.85,603.42,1.5244441]
[1746581710769,0.30386958,605.81,603.42,1.5244441]
[1746581711060,0.30386958,605.8,603.42,1.5244441]
[1746581711454,0.63401699,605.79,603.42,1.5244441]
[1746581711658,0.33015286,605.78,603.42,1.5244441]
[1746581711853,0.30386958,605.77,603.42,1.5244441]
[1746581712055,0.63403334,605.76,603.42,1.5244441]
[1746581712358,0.30386958,605.75,603.42,1.5244441]
[1746581712551,0.63403879,605.75,603.42,1.5244441]
[1746581713059,0.28776502,605.74,603.42,1.5244441]
[1746581713255,0.33018011,605.73,603.42,1.5244441]
[1746581714256,0.30386958,605.72,603.42,1.5244441]
[1746581714961,0.33018011,605.73,603.42,1.5244441]
[1746581715260,0.30385517,605.72,603.42,1.5244441]
[1746581715653,0.30385517,605.71,603.42,1.5244441]
[1746581716163,0.30385517,605.72,603.42,1.5244441]
[1746581718059,0.33019101,605.71,603.42,1.5244441]
[1746581718763,0.28779239,605.7,603.42,1.5244441]
[1746581719056,0.30385517,605.69,603.42,1.5244441]
[1746581720358,0.33020737,605.68,603.42,1.5244441]
[1746581720559,0.30387809,605.67,603.42,1.5244441]
[1746581720961,0.33021827,605.66,603.42,1.5244441]
[1746581721359,0.30387809,605.65,603.42,1.5244441]
[1746581721562,0.33022917,605.64,603.42,1.5244441]
[1746581721959,0.30387809,605.63,603.42,1.5244441]
[1746581724258,0.28780191,605.62,603.42,1.5244441]
[1746581725062,0.30387809,605.61,603.42,1.5244441]
[1746581727263,0.28779596,605.6,603.42,1.5244441]
[1746581727562,0.30387809,605.59,603.42,1.5244441]
[1746581730448,0.30387809,605.62,603.42,1.5244441]
[1746581730950,0.28778644,605.58,603.42,1.5244441]
[1746581731243,0.30387809,605.57,603.42,1.5244441]
[1746581733433,0.30387809,605.62,603.42,1.5244441]
[1746581733733,0.33023463,605.63,603.42,1.5244441]
[1746581733734,0.59166453,605.56,603.42,1.5244441]
[1746581733933,0.28778644,605.56,603.42,1.5244441]
[1746581734232,0.30387809,605.55,603.42,1.5244441]
[1746581735636,0.28778644,605.56,603.42,1.5244441]
[1746581735836,0.33023463,605.63,603.42,1.5244441]
[1746581736029,0.30389008,605.55,603.42,1.5244441]
[1746581736234,0.30389008,605.62,603.42,1.5244441]
[1746581736635,0.28778644,605.54,603.42,1.5244441]
[1746581737137,0.30389008,605.53,603.42,1.5244441]
[1746581739135,0.30389008,605.62,603.42,1.5244441]
[1746581739439,0.28778644,605.52,603.42,1.5244441]
[1746581739740,0.30389008,605.51,603.42,1.5244441]
[1746581741942,0.30389008,605.62,603.42,1.5244441]
[1746581742446,0.28779834,605.61,603.42,1.5244441]
[1746581742846,0.30389008,605.6,603.42,1.5244441]
[1746581744747,0.28779834,605.61,603.42,1.5244441]
[1746581744948,0.33023463,605.63,603.42,1.5244441]
[1746581745246,0.30389251,605.6,603.42,1.5244441]
[1746581745442,0.30389251,605.62,603.42,1.5244441]
[1746581745646,0.59163493,605.62,603.42,1.5244441]
[1746581746145,0.30389251,605.61,603.42,1.5244441]
[1746581748252,0.28779953,605.6,603.42,1.5244441]
[1746581748546,0.30389251,605.59,603.42,1.5244441]
[1746581751247,0.28779834,605.58,603.42,1.5244441]
[1746581751648,0.30389251,605.57,603.42,1.5244441]
[1746581754455,0.30389251,605.62,603.42,1.5244441]
[1746581754656,0.28779834,605.56,603.42,1.5244441]
[1746581755255,0.30389251,605.55,603.42,1.5244441]
[1746581757157,0.30389251,605.62,603.42,1.5244441]
[1746581757457,0.28779834,605.54,603.42,1.5244441]
[1746581757658,0.30389251,605.62,603.42,1.5244441]
[1746581758957,0.28779834,605.61,603.42,1.5244441]
[1746581759353,0.30389251,605.6,603.42,1.5244441]
[1746581760459,0.28779834,605.59,603.42,1.5244441]
[1746581760757,0.30389251,605.58,603.42,1.5244441]
[1746581763161,0.30389251,605.62,603.42,1.5244441]
[1746581763361,0.28779834,605.57,603.42,1.5244441]
[1746581763859,0.30389251,605.56,603.42,1.5244441]
[1746581764856,0.28779834,605.57,603.42,1.5244441]
[1746581765261,0.30390181,605.56,603.42,1.5244441]
[1746581766255,0.30390181,605.62,603.42,1.5244441]
[1746581766561,0.30390181,605.61,603.42,1.5244441]
[1746581766759,0.59170015,605.61,603.42,1.5244441]
[1746581766963,0.30390181,605.6,603.42,1.5244441]
[1746581767262,0.30390181,605.59,603.42,1.5244441]
[1746581767462,0.30390181,605.58,603.42,1.5244441]
[1746581767662,0.30390181,605.6,603.42,1.5244441]
[1746581768367,0.30390181,605.59,603.42,1.5244441]
[1746581769872,0.30390181,605.58,603.42,1.5244441]
[1746581770566,0.30390181,605.57,603.42,1.5244441]
[1746581770963,0.30390181,605.56,603.42,1.5244441]
[1746581771163,0.30390181,605.56,603.45,1.04391929]
[1746581771362,0.30390181,605.6,603.55,0.33137271]
[1746581771863,0.30390181,605.59,603.55,0.33137271]
[1746581772270,0.28779477,605.58,603.55,0.33137271]
[1746581772470,0.30390181,605.57,603.55,0.33137271]
[1746581773770,0.30390181,605.57,603.55,0.90137271]
[1746581774672,0.30390181,605.57,603.55,1.43637271]
[1746581775170,0.33023463,605.63,603.55,1.43637271]
[1746581775171,0.30390181,605.62,603.55,1.43637271]
[1746581775873,0.59166446,605.62,603.55,1.43637271]
[1746581776073,0.30390181,605.61,603.55,1.43637271]
[1746581778168,0.30390181,605.62,603.55,1.43637271]
[1746581778472,0.28778287,605.6,603.55,1.43637271]
[1746581778669,0.30390181,605.59,603.55,1.43637271]
[1746581781175,0.28777692,605.58,603.55,1.43637271]
[1746581781574,0.30390181,605.57,603.55,1.43637271]
[1746581784073,0.30390181,605.56,603.55,1.43637271]
[1746581784274,0.30390181,605.55,603.55,1.43637271]
[1746581784673,0.28777216,605.56,603.55,1.43637271]
[1746581784878,0.30390181,605.54,603.55,1.43637271]
[1746581785079,0.30390181,605.53,603.55,1.43637271]
[1746581785277,0.30390181,605.55,603.55,1.43637271]
[1746581785475,0.30390181,605.54,603.55,1.43637271]
[1746581785676,0.30390181,605.53,603.55,1.43637271]
[1746581785875,0.30390181,605.55,603.55,1.43637271]
[1746581786072,0.30390181,605.54,603.55,1.43637271]
[1746581786377,0.30390181,605.53,603.55,1.43637271]
[1746581786577,0.30390181,605.55,603.55,1.43637271]
[1746581786775,0.30390181,605.54,603.55,1.43637271]
[1746581786974,0.30390181,605.62,603.55,1.43637271]
[1746581787374,0.28776502,605.52,603.55,1.43637271]
[1746581787578,0.30384173,605.51,603.55,1.43637271]
[1746581787777,0.30384173,605.62,603.55,1.43637271]
[1746581788879,0.28775194,605.61,603.55,1.43637271]
[1746581789476,0.30381525,605.6,603.55,1.43637271]
[1746581790379,0.28775194,605.59,603.55,1.43637271]
[1746581790575,0.30381525,605.58,603.55,1.43637271]
[1746581793080,0.30381525,605.62,603.55,1.43637271]
[1746581793279,0.28775194,605.57,603.55,1.43637271]
[1746581793883,0.30381525,605.56,603.55,1.43637271]
[1746581796080,0.30381525,605.62,603.55,1.43637271]
[1746581796385,0.28775194,605.55,603.55,1.43637271]
[1746581796985,0.30381525,605.54,603.55,1.43637271]
[1746581799195,0.30381525,605.62,603.55,1.43637271]
[1746581799497,0.28776146,605.53,603.55,1.43637271]
[1746581799793,0.30381525,605.52,603.55,1.43637271]
[1746581802090,0.30381525,605.62,603.55,1.43637271]
[1746581802289,0.33023463,605.63,603.55,1.43637271]
[1746581802591,0.28775194,605.61,603.55,1.43637271]
[1746581802990,0.30383457,605.6,603.55,1.43637271]
[1746581805090,0.30383457,605.62,603.55,1.43637271]
[1746581805891,0.28775194,605.61,603.55,1.43637271]
[1746581806292,0.30383831,605.6,603.55,1.43637271]
[1746581807694,0.28775194,605.61,603.55,1.43637271]
[1746581807990,0.30383978,605.6,603.55,1.43637271]
[1746581808393,0.30383978,605.62,603.55,1.43637271]
[1746581808691,0.28775194,605.61,603.55,1.43637271]
[1746581809195,0.30383978,605.6,603.55,1.43637271]
[1746581811095,0.30383978,605.62,603.55,1.43637271]
[1746581811297,0.28775194,605.59,603.55,1.43637271]
[1746581811593,0.30383978,605.58,603.55,1.43637271]
[1746581812597,0.28775194,605.59,603.55,1.43637271]
[1746581812797,0.30383747,605.58,603.55,1.43637271]
[1746581814202,0.30383747,605.62,603.55,1.43637271]
[1746581814803,0.28776146,605.61,603.55,1.43637271]
[1746581815104,0.30383747,605.6,603.55,1.43637271]
[1746581816804,0.28776146,605.61,603.55,1.43637271]
[1746581817004,0.3039034,605.6,603.55,1.43637271]
[1746581817200,0.3039034,605.62,603.55,1.43637271]
[1746581817706,0.2877912,605.6,603.55,1.43637271]
[1746581817906,0.3039034,605.59,603.55,1.43637271]
[1746581820101,0.3039034,605.62,603.55,1.43637271]
[1746581820510,0.28778763,605.61,603.55,1.43637271]
[1746581820707,0.33025099,605.6,603.55,1.43637271]
[1746581820909,0.63415439,605.6,603.55,1.43637271]
[1746581821104,0.3039034,605.59,603.55,1.43637271]
[1746581823210,0.28779834,605.58,603.55,1.43637271]
[1746581823408,0.3039034,605.57,603.55,1.43637271]
[1746581826210,0.3039034,605.59,603.55,1.43637271]
[1746581826411,0.28779834,605.56,603.55,1.43637271]
[1746581826710,0.3039034,605.55,603.55,1.43637271]
[1746581827406,0.3039034,605.54,603.55,1.43637271]
[1746581827710,0.28779834,605.56,603.55,1.43637271]
[1746581827711,0.3039034,605.53,603.55,1.43637271]
[1746581828115,0.3039034,605.52,603.55,1.43637271]
[1746581828412,0.3039034,605.51,603.55,1.43637271]
[1746581828711,0.3039034,605.5,603.55,1.43637271]
[1746581829106,0.3039034,605.49,603.55,1.43637271]
[1746581829410,0.2878031,605.49,603.55,1.43637271]
[1746581829810,0.3039034,605.48,603.55,1.43637271]
[1746581832312,0.3039034,605.59,603.55,1.43637271]
[1746581832513,0.28779834,605.47,603.55,1.43637271]
[1746581833114,0.3039034,605.46,603.55,1.43637271]
[1746581835213,0.28779834,605.45,603.55,1.43637271]
[1746581835619,0.30390919,605.44,603.55,1.43637271]
[1746581838119,0.30390919,605.59,603.55,1.43637271]
[1746581838320,0.28779834,605.43,603.55,1.43637271]
[1746581838620,0.30390919,605.42,603.55,1.43637271]
[1746581839520,0.28779834,605.41,603.55,1.43637271]
[1746581839816,0.30390919,605.4,603.55,1.43637271]
[1746581841418,0.30390919,605.59,603.55,1.43637271]
[1746581841721,0.28779834,605.39,603.55,1.43637271]
[1746581842018,0.30390919,605.59,603.55,1.43637271]
[1746581842221,0.30390919,605.38,603.55,1.43637271]
[1746581842421,0.30390919,605.59,603.55,1.43637271]
[1746581842817,0.30390919,605.58,603.55,1.43637271]
[1746581843123,0.30390919,605.57,603.55,1.43637271]
[1746581843322,0.59170753,605.57,603.55,1.43637271]
[1746581843522,0.30390919,605.56,603.55,1.43637271]
[1746581843716,0.30390919,605.55,603.55,1.43637271]
[1746581844124,0.30390919,605.54,603.55,1.43637271]
[1746581844421,0.30390919,605.53,603.55,1.43637271]
[1746581844821,0.30390919,605.52,603.55,1.43637271]
[1746581845022,0.30390919,605.51,603.55,1.43637271]
[1746581845721,0.30390919,605.5,603.55,1.43637271]
[1746581846222,0.30390919,605.49,603.55,1.43637271]
[1746581846724,0.30390919,605.48,603.55,1.43637271]
[1746581846918,0.30390919,605.47,603.55,1.43637271]
[1746581847224,0.30390919,605.53,603.55,1.43637271]
[1746581847525,0.30390919,605.52,603.55,1.43637271]
[1746581847720,0.30390919,605.53,603.55,1.43637271]
[1746581850229,0.30390919,605.59,603.55,1.43637271]
[1746581850522,0.33025099,605.6,603.55,1.43637271]
[1746581850523,0.30390919,605.58,603.55,1.43637271]
[1746581850927,0.30390919,605.57,603.55,1.43637271]
[1746581851127,0.59172896,605.57,603.55,1.43637271]
[1746581851326,0.30390919,605.56,603.55,1.43637271]
[1746581851723,0.33027825,605.55,603.55,1.43637271]
[1746581851924,0.63418744,605.55,603.55,1.43637271]
[1746581852427,0.30390919,605.54,603.55,1.43637271]
[1746581852627,0.33028916,605.53,603.55,1.43637271]
[1746581852827,0.63419835,605.53,603.55,1.43637271]
[1746581853229,0.30390919,605.52,603.55,1.43637271]
[1746581853429,0.33030007,605.51,603.55,1.43637271]
[1746581853730,0.30390919,605.5,603.55,1.43637271]
[1746581855129,0.33030007,605.51,603.55,1.43637271]
[1746581855424,0.30394707,605.5,603.55,1.43637271]
[1746581856529,0.28783048,605.49,603.55,1.43637271]
[1746581856930,0.30394707,605.48,603.55,1.43637271]
[1746581857932,0.30394707,605.47,603.55,1.43637271]
[1746581858225,0.30394707,605.46,603.55,1.43637271]
[1746581858631,0.30394707,605.45,603.55,1.43637271]
[1746581859033,0.30394707,605.44,603.55,1.43637271]
[1746581859233,0.30394707,605.43,603.55,1.43637271]
[1746581859436,0.30394707,605.42,603.55,1.43637271]
[1746581859634,0.30394707,605.41,603.55,1.43637271]
[1746581859835,0.30394707,605.4,603.55,1.43637271]
[1746581860136,0.30394707,605.39,603.55,1.43637271]
[1746581860334,0.30394707,605.38,603.55,1.43637271]
[1746581860729,0.30394707,605.37,603.55,1.43637271]
[1746581861134,0.30394707,605.36,603.55,1.43637271]
[1746581861435,0.30394707,605.35,603.55,1.43637271]
[1746581861735,0.30394707,605.48,603.55,1.43637271]
[1746581862238,0.59176088,605.47,603.55,1.43637271]
[1746581862837,0.30394707,605.46,603.55,1.43637271]
[1746581863136,0.30394707,605.45,603.55,1.43637271]
[1746581863431,0.30394707,605.44,603.55,1.43637271]
[1746581863736,0.30394707,605.43,603.55,1.43637271]
[1746581864136,0.30394707,605.42,603.55,1.43637271]
[1746581864333,0.30394707,605.41,603.55,1.43637271]
[1746581864736,0.30394707,605.4,603.55,1.43637271]
[1746581865039,0.30394707,605.39,603.55,1.43637271]
[1746581865436,0.30394707,605.38,603.55,1.43637271]
[1746581865732,0.28783048,605.38,603.55,1.43637271]
[1746581866137,0.30395018,605.37,603.55,1.43637271]
[1746581868138,0.30395018,605.5,603.55,1.43637271]
[1746581868341,0.63425571,605.5,603.55,1.43637271]
[1746581868541,0.28783286,605.36,603.55,1.43637271]
[1746581868736,0.30395018,605.35,603.55,1.43637271]
[1746581868942,0.33030553,605.5,603.55,1.43637271]
[1746581869240,0.30397886,605.49,603.55,1.43637271]
[1746581870050,0.28783405,605.48,603.55,1.43637271]
[1746581870442,0.30397886,605.47,603.55,1.43637271]
[1746581871038,0.30397886,605.49,603.55,1.43637271]
[1746581871345,0.28783405,605.46,603.55,1.43637271]
[1746581871545,0.30397886,605.45,603.55,1.43637271]
[1746581874146,0.30397886,605.49,603.55,1.43637271]
[1746581874643,0.28783405,605.48,603.55,1.43637271]
[1746581874947,0.30397886,605.47,603.55,1.43637271]
[1746581876748,0.30397886,605.46,603.55,1.43637271]
[1746581877046,0.30397886,605.45,603.55,1.43637271]
[1746581877349,0.30397886,605.44,603.55,1.43637271]
[1746581877550,0.30397886,605.43,603.55,1.43637271]
[1746581877751,0.30397886,605.44,603.55,1.43637271]
[1746581877951,0.30397886,605.43,603.55,1.43637271]
[1746581878151,0.30397886,605.44,603.55,1.43637271]
[1746581878352,0.30397886,605.43,603.55,1.43637271]
[1746581878552,0.30397886,605.44,603.55,1.43637271]
[1746581878751,0.30397886,605.43,603.55,1.43637271]
[1746581879053,0.30397886,605.42,603.55,1.43637271]
[1746581879251,0.30397886,605.41,603.55,1.43637271]
[1746581879547,0.30397886,605.4,603.55,1.43637271]
[1746581879847,0.30397886,605.39,603.55,1.43637271]
[1746581880052,0.33030553,605.5,603.55,1.43637271]
[1746581880254,0.3039657,605.49,603.55,1.43637271]
[1746581880453,0.33030553,605.5,603.55,1.43637271]
[1746581880454,0.3039657,605.48,603.55,1.43637271]
[1746581880656,0.3039657,605.47,603.55,1.43637271]
[1746581880854,0.3039657,605.46,603.55,1.43637271]
[1746581881052,0.3039657,605.45,603.55,1.43637271]
[1746581881351,0.3039657,605.44,603.55,1.43637271]
[1746581881549,0.3039657,605.43,603.55,1.43637271]
[1746581881750,0.3039657,605.42,603.55,1.43637271]
[1746581881955,0.3039657,605.41,603.55,1.43637271]
[1746581882154,0.3039657,605.4,603.55,1.43637271]
[1746581882349,0.3039657,605.39,603.55,1.43637271]
[1746581882554,0.3039657,605.48,603.55,1.43637271]
[1746581882751,0.3039657,605.47,603.55,1.43637271]
[1746581882955,0.3039657,605.46,603.55,1.43637271]
[1746581883155,0.3039657,605.49,603.55,1.43637271]
[1746581883355,0.3039657,605.48,603.55,1.43637271]
[1746581883550,0.3039657,605.47,603.55,1.43637271]
[1746581886059,0.3039657,605.49,603.55,1.43637271]
[1746581886255,0.3039657,605.48,603.55,1.43637271]
[1746581886460,0.28780548,605.46,603.55,1.43637271]
[1746581886660,0.3039657,605.45,603.55,1.43637271]
[1746581888462,0.28780548,605.46,603.55,1.43637271]
[1746581888663,0.30393836,605.45,603.55,1.43637271]
[1746581889157,0.30393836,605.49,603.55,1.43637271]
[1746581889763,0.59176051,605.48,603.55,1.43637271]
[1746581889962,0.30393836,605.47,603.55,1.43637271]
[1746581892362,0.28783167,605.46,603.55,1.43637271]
[1746581892662,0.59177003,605.46,603.55,1.43637271]
[1746581892862,0.30393836,605.45,603.55,1.43637271]
[1746581895167,0.30393836,605.49,603.55,1.43637271]
[1746581895367,0.33030553,605.5,603.55,1.43637271]
[1746581895565,0.30396977,605.49,603.55,1.43637271]
[1746581895766,0.30396977,605.59,603.55,1.43637271]
[1746581895967,0.63423166,605.58,603.55,1.43637271]
[1746581896173,0.28782215,605.48,603.55,1.43637271]
[1746581896364,0.30396977,605.47,603.55,1.43637271]
[1746581898170,0.30396977,605.56,603.55,1.43637271]
[1746581898469,0.33027825,605.55,603.55,1.43637271]
[1746581898662,0.30396977,605.54,603.55,1.43637271]
[1746581898868,0.33028916,605.53,603.55,1.43637271]
[1746581899771,0.28782929,605.52,603.55,1.43637271]
[1746581900071,0.33030007,605.51,603.55,1.43637271]
[1746581900271,0.63426984,605.51,603.55,1.43637271]
[1746581900573,0.30396977,605.5,603.55,1.43637271]
[1746581900774,0.6342753,605.5,603.55,1.43637271]
[1746581900975,0.30396977,605.49,603.55,1.43637271]
[1746581902673,0.30396977,605.48,603.55,1.43637271]
[1746581903076,0.30396977,605.47,603.55,1.43637271]
[1746581903376,0.30396977,605.46,603.55,1.43637271]
[1746581904078,0.30396977,605.45,603.55,1.43637271]
[1746581904574,0.30396977,605.44,603.55,1.43637271]
[1746581904977,0.30396977,605.43,603.55,1.43637271]
[1746581905274,0.30396977,605.49,603.55,1.43637271]
[1746581905578,0.30396977,605.48,603.55,1.43637271]
[1746581905877,0.30396977,605.47,603.55,1.43637271]
[1746581906379,0.30396977,605.46,603.55,1.43637271]
[1746581906677,0.30396977,605.45,603.55,1.43637271]
[1746581907073,0.30396977,605.44,603.55,1.43637271]
[1746581907278,0.30396977,605.49,603.55,1.43637271]
[1746581907677,0.30396977,605.48,603.55,1.43637271]
[1746581908179,0.30396977,605.47,603.55,1.43637271]
[1746581908377,0.30396977,605.46,603.55,1.43637271]
[1746581908677,0.30396977,605.45,603.55,1.43637271]
[1746581908975,0.30396977,605.44,603.55,1.43637271]
[1746581909279,0.30396977,605.43,603.55,1.43637271]
[1746581909579,0.30396977,605.42,603.55,1.43637271]
[1746581910177,0.30396977,605.49,603.55,1.43637271]
[1746581910381,0.59180382,605.41,603.55,1.43637271]
[1746581910581,0.30396977,605.41,603.55,1.43637271]
[1746581910880,0.30396977,605.4,603.55,1.43637271]
[1746581911276,0.30396977,605.49,603.55,1.43637271]
[1746581911481,0.28781262,605.39,603.55,1.43637271]
[1746581911781,0.30396977,605.39,603.55,1.43637271]
[1746581911982,0.28780905,605.38,603.55,1.43637271]
[1746581912281,0.30392991,605.37,603.55,1.43637271]
[1746581913383,0.28780786,605.36,603.55,1.43637271]
[1746581913782,0.30392991,605.35,603.55,1.43637271]
[1746581916183,0.30392991,605.49,603.55,1.43637271]
[1746581916478,0.59172349,605.34,603.55,1.43637271]
[1746581916681,0.28779358,605.34,603.55,1.43637271]
[1746581916883,0.30392991,605.48,603.55,1.43637271]
[1746581917178,0.30392991,605.33,603.55,1.43637271]
[1746581917382,0.30392991,605.47,603.55,1.43637271]
[1746581917582,0.30392991,605.49,603.55,1.43637271]
[1746581918082,0.28779358,605.48,603.55,1.43637271]
[1746581918282,0.30392991,605.47,603.55,1.43637271]
[1746581918483,0.28779358,605.48,603.55,1.43637271]
[1746581918883,0.33030553,605.5,603.55,1.43637271]
[1746581918884,0.30391072,605.47,603.55,1.43637271]
[1746581919282,0.30391072,605.49,603.55,1.43637271]
[1746581919481,0.33030553,605.5,603.55,1.43637271]
[1746581919681,0.28779358,605.46,603.55,1.43637271]
[1746581920283,0.30391096,605.45,603.55,1.43637271]
[1746581921183,0.28779358,605.46,603.55,1.43637271]
[1746581921485,0.30391154,605.45,603.55,1.43637271]
[1746581922182,0.30391154,605.49,603.55,1.43637271]
[1746581922378,0.59170512,605.44,603.55,1.43637271]
[1746581922584,0.30391154,605.43,603.55,1.43637271]
[1746581925280,0.30391154,605.49,603.55,1.43637271]
[1746581925684,0.28781262,605.48,603.55,1.43637271]
[1746581926183,0.30391154,605.47,603.55,1.43637271]
[1746581928386,0.30391154,605.49,603.55,1.43637271]
[1746581928582,0.28783405,605.46,603.55,1.43637271]
[1746581929385,0.30391154,605.45,603.55,1.43637271]
[1746581931283,0.30391154,605.49,603.55,1.43637271]
[1746581931488,0.28783405,605.44,603.55,1.43637271]
[1746581932088,0.30391154,605.43,603.55,1.43637271]
[1746581934189,0.28782215,605.42,603.55,1.43637271]
[1746581934491,0.30391154,605.41,603.55,1.43637271]
[1746581934693,0.28782215,605.42,603.55,1.43637271]
[1746581934891,0.30393624,605.41,603.55,1.43637271]
[1746581937395,0.28781738,605.4,603.55,1.43637271]
[1746581937696,0.30393624,605.39,603.55,1.43637271]
[1746581940197,0.30393624,605.49,603.55,1.43637271]
[1746581940398,0.28781738,605.38,603.55,1.43637271]
[1746581940900,0.30393624,605.37,603.55,1.43637271]
[1746581943399,0.28781262,605.36,603.55,1.43637271]
[1746581943795,0.30393624,605.35,603.55,1.43637271]
[1746581946405,0.28782929,605.34,603.55,1.43637271]
[1746581946803,0.30393624,605.33,603.55,1.43637271]
[1746581949305,0.28779358,605.32,603.55,1.43637271]
[1746581949709,0.30393624,605.31,603.55,1.43637271]
[1746581954911,0.33030553,605.5,603.55,1.43637271]
[1746581955211,0.30391955,605.49,603.55,1.43637271]
[1746581955814,0.28783643,605.3,603.55,1.43637271]
[1746581956111,0.30391955,605.29,603.55,1.43637271]
[1746581957412,0.28783643,605.3,603.55,1.43637271]
[1746581957607,0.3039194,605.29,603.55,1.43637271]